bitfinex-derivatives/quotes_SOLF0:USTF0_20241002
["timestamp","ask_amount","ask_price","bid_price","bid_amount"]
[1727878490676,7.52,145.5,145.45,3.4379]
[1727878491076,3.4374,145.48,145.45,3.4379]
[1727878491584,3.4374,145.48,145.43,0.12502]
[1727878491983,10.957,145.5,145.47,3.4374]
[1727878492486,10.957,145.5,145.43,0.12502]
[1727878492681,7.52,145.5,145.47,3.4376]
[1727878493081,10.9569,145.5,145.43,0.12502]
[1727878493483,10.9569,145.5,145.47,3.4374]
[1727878493686,7.52,145.5,145.43,0.12502]
[1727878493882,7.52,145.5,145.45,3.438]
[1727878494082,7.52,145.5,145.43,0.12502]
[1727878494485,10.957,145.5,145.47,3.4375]
[1727878494679,3.437,145.5,145.47,3.4375]
[1727878495583,2.6734,145.51,145.43,0.12502]
[1727878495782,3.4373,145.49,145.43,0.12502]
[1727878495983,2.6734,145.51,145.43,0.12502]
[1727878496697,3.4372,145.49,145.43,0.12502]
[1727878496894,2.6734,145.51,145.43,0.12502]
[1727878497089,3.437,145.5,145.45,3.438]
[1727878497287,2.6228,145.6,145.49,26.39]
[1727878497792,2.6228,145.6,145.48,7.5]
[1727878497793,3.56082,145.55,145.48,7.5]
[1727878497991,3.56082,145.55,145.48,33.89]
[1727878498198,0.12502,145.55,145.54,3.4359]
[1727878500290,0.12502,145.55,145.5,26.39]
[1727878500291,0.12502,145.55,145.49,4.0179]
[1727878500692,3.4367,145.51,145.46,33.89]
[1727878500996,0.12502,145.55,145.48,3.4372]
[1727878501299,0.12502,145.55,145.46,33.89]
[1727878501507,0.12502,145.55,145.48,3.4372]
[1727878501697,3.4382,145.45,145.43,0.12502]
[1727878502004,29.90836114,145.45,145.43,0.12502]
[1727878502302,3.41730622,145.44,145.43,0.12502]
[1727878502603,3.4383,145.44,145.43,0.12502]
[1727878502899,3.4383,145.44,145.43,1e-08]
[1727878503107,6.95013038,145.44,145.43,1e-08]
[1727878503404,3.4396,145.39,145.37,0.12502]
[1727878503699,7.5,145.4,145.37,0.12502]
[1727878504198,26.39,145.43,145.37,0.12502]
[1727878504700,7.5,145.42,145.37,0.12502]
[1727878505092,3.4397,145.38,145.37,0.12502]
[1727878505300,10.9397,145.38,145.37,0.12502]
[1727878506103,26.39,145.4,145.37,0.12502]
[1727878506298,74.26,145.44,145.37,0.12502]
[1727878506299,26.39,145.42,145.37,0.12502]
[1727878506499,74.26,145.44,145.37,0.12502]
[1727878506701,74.26,145.44,145.4,3.4391]
[1727878506999,7.5,145.43,145.37,0.12502]
[1727878507602,33.89,145.43,145.37,0.12502]
[1727878508500,26.39,145.4,145.37,0.12502]
[1727878508698,7.5,145.39,145.37,0.12502]
[1727878508903,3.4397,145.38,145.37,0.12502]
[1727878509097,26.39,145.38,145.32,0.12518]
[1727878509302,26.39,145.36,145.32,0.12518]
[1727878509503,26.39,145.33,145.31,0.12502]
[1727878509707,29.75290935,145.33,145.25,0.12502]
[1727878509896,26.39,145.33,145.25,0.12502]
[1727878510098,7.5,145.32,145.25,0.12502]
[1727878510503,7.5,145.32,145.25,3.56772]
[1727878510706,7.5,145.31,145.25,0.12502]
[1727878511412,3.49398541,145.34,145.25,0.12502]
[1727878511413,7.5,145.32,145.25,0.12502]
[1727878512308,7.5,145.32,145.27,3.4423]
[1727878512501,2.81552,145.37,145.28,26.39]
[1727878512502,0.12502,145.37,145.28,26.39]
[1727878512808,0.12502,145.37,145.28,29.81844221]
[1727878513006,0.12502,145.37,145.28,26.39]
[1727878513311,0.12502,145.37,145.27,7.5]
[1727878513806,3.56502,145.37,145.3,3.4416]
[1727878514011,0.12502,145.37,145.27,7.5]
[1727878514403,0.12502,145.37,145.36,3.4402]
[1727878514905,7.5,145.45,145.35,26.39]
[1727878515410,10.98400849,145.45,145.35,26.39]
[1727878516313,7.5,145.45,145.35,33.89]
[1727878516512,1.2708,145.48,145.37,26.39]
[1727878516907,4.7082,145.48,145.42,3.4388]
[1727878517104,1.2708,145.48,145.42,3.4388]
[1727878517621,3.438,145.46,145.42,3.4388]
[1727878517803,1.2708,145.48,145.42,3.4388]
[1727878518002,7.62502,145.49,145.42,3.4388]
[1727878518708,42.91,145.47,145.39,7.5]
[1727878519314,0.12502,145.49,145.4,42.91]
[1727878519516,0.12502,145.49,145.42,42.91]
[1727878519814,43.03502,145.49,145.41,2.6061]
[1727878520019,50.53502,145.49,145.41,2.6061]
[1727878520701,3.4377,145.47,145.41,4.7616]
[1727878521010,50.53502,145.49,145.38,7.5]
[1727878521011,3.35957124,145.46,145.38,7.5]
[1727878521313,3.4389,145.42,145.37,0.12502]
[1727878521515,3.43466255,145.45,145.37,0.12502]
[1727878521705,50.53502,145.49,145.37,0.12502]
[1727878522014,50.53502,145.49,145.38,42.91]
[1727878522210,0.12502,145.49,145.4,42.91]
[1727878522417,3.4374,145.48,145.42,3.4386]
[1727878522710,3.4374,145.48,145.4,42.91]
[1727878522910,0.12502,145.49,145.4,42.91]
[1727878523608,3.4376,145.47,145.44,3.4381]
[1727878524216,3.4385,145.44,145.41,3.439]
[1727878524403,43.03502,145.49,145.38,42.91]
[1727878524607,42.91,145.46,145.37,0.12502]
[1727878524918,53.76360815,145.46,145.37,0.12502]
[1727878525116,43.03502,145.49,145.38,42.91]
[1727878525413,43.03502,145.49,145.37,0.12502]
[1727878525414,7.5,145.48,145.4,42.91]
[1727878525806,7.5,145.48,145.44,3.4381]
[1727878525807,3.4378,145.47,145.44,3.4381]
[1727878526112,7.5,145.48,145.44,3.4381]
[1727878526517,10.9375,145.48,145.44,3.4381]
[1727878526708,7.5,145.48,145.44,3.4381]
[1727878527110,3.4377,145.47,145.43,3.4384]
[1727878527310,3.4377,145.47,145.4,42.91]
[1727878527617,7.5,145.48,145.43,3.4383]
[1727878528121,3.4379,145.46,145.43,3.4383]
[1727878528511,7.5,145.48,145.42,3.4387]
[1727878528711,7.5,145.48,145.39,7.5]
[1727878529412,3.4388,145.43,145.37,7.62502]
[1727878529620,3.45379198,145.46,145.37,7.62502]
[1727878529811,3.4389,145.42,145.39,3.4394]
[1727878530012,42.91,145.46,145.37,7.62502]
[1727878530210,46.30773621,145.46,145.4,3.4391]
[1727878530410,46.30773621,145.46,145.37,0.12502]
[1727878530612,42.91,145.44,145.37,0.12502]
[1727878530809,3.4397,145.38,145.37,0.12502]
[1727878532017,7.5,145.4,145.37,0.12502]
[1727878533019,7.5,145.4,145.37,3.56482]
[1727878533220,7.5,145.4,145.37,0.12502]
[1727878533617,50.41,145.4,145.37,0.12502]
[1727878534018,7.5,145.4,145.37,0.12502]
[1727878535012,3.9408,145.45,145.37,0.12502]
[1727878535013,7.5,145.43,145.37,0.12502]
[1727878535213,10.9386,145.43,145.4,3.4391]
[1727878535521,7.5,145.43,145.37,0.12502]
[1727878535722,7.5,145.43,145.39,3.4393]
[1727878535723,3.439,145.42,145.39,3.4393]
[1727878536021,7.5,145.43,145.37,0.12502]
[1727878536230,11.00812672,145.43,145.37,0.12502]
[1727878536522,53.91812672,145.43,145.37,0.12502]
[1727878537312,42.91,145.4,145.37,0.12502]
[1727878537514,3.4397,145.38,145.37,0.12502]
[1727878537921,7.5,145.39,145.37,0.12502]
[1727878538125,3.4397,145.38,145.37,0.12502]
[1727878538630,7.5,145.41,145.37,0.12502]
[1727878539116,7.5,145.44,145.37,0.12502]
[1727878539320,10.99192122,145.44,145.37,0.12502]
[1727878540425,7.5,145.44,145.37,0.12502]
[1727878540830,0.12502,145.49,145.37,26.54502]
[1727878541026,7.5,145.48,145.38,8.8346]
[1727878541223,7.5,145.48,145.4,26.42]
[1727878541821,3.4383,145.44,145.41,3.439]
[1727878542322,7.5,145.48,145.38,3.4395]
[1727878542323,3.4386,145.43,145.38,3.4395]
[1727878542522,26.42,145.47,145.37,0.12502]
[1727878542523,3.52470576,145.45,145.37,0.12502]
[1727878542739,1.278,145.46,145.37,0.12502]
[1727878542946,3.4392,145.41,145.38,3.4396]
[1727878543421,3.4393,145.4,145.37,3.56492]
[1727878543624,7.5,145.44,145.37,0.12502]
[1727878544021,3.4394,145.4,145.37,3.56482]
[1727878544237,7.5,145.44,145.37,0.12502]
[1727878544532,3.4395,145.39,145.37,0.12502]
[1727878544729,26.42,145.43,145.37,0.12502]
[1727878544935,3.4397,145.38,145.37,0.12502]
[1727878546624,7.5,145.4,145.31,0.12502]
[1727878546831,3.4407,145.35,145.31,0.12502]
[1727878547033,26.42,145.38,145.31,0.12502]
[1727878548331,3.4401,145.37,145.31,0.12502]
[1727878548537,7.5,145.4,145.31,0.12502]
[1727878549234,26.42,145.38,145.31,0.12502]
[1727878549642,3.4411,145.32,145.31,0.12502]
[1727878550032,10.8788557,145.35,145.31,0.12502]
[1727878550231,3.4411,145.33,145.31,0.12502]
[1727878550434,10.8788557,145.35,145.31,0.12502]
[1727878550933,3.4411,145.32,145.31,0.12502]
[1727878551340,26.42,145.32,145.25,0.12502]
[1727878551542,7.48,145.31,145.25,0.12502]
[1727878551843,3.4424,145.27,145.25,0.12502]
[1727878552229,8.8308,145.31,145.25,0.12502]
[1727878552428,3.4423,145.28,145.25,0.12502]
[1727878552626,3.4423,145.28,145.25,3.56782]
[1727878552835,8.8308,145.31,145.25,0.12502]
[1727878553244,8.8308,145.31,145.25,3.56782]
[1727878553646,8.8308,145.31,145.25,0.12502]
[1727878553832,3.4423,145.28,145.25,0.12502]
[1727878554032,35.2508,145.31,145.25,0.12502]
[1727878554340,3.4425,145.27,145.25,0.12502]
[1727878555039,3.442,145.29,145.26,3.4424]
[1727878555342,8.8308,145.31,145.25,0.12502]
[1727878555933,2.6557,145.34,145.25,0.12502]
[1727878556234,7.48,145.33,145.25,0.12502]
[1727878556433,7.48,145.33,145.29,3.4419]
[1727878556630,7.48,145.33,145.25,26.54502]
[1727878557045,7.48,145.33,145.25,0.12502]
[1727878557236,33.9,145.33,145.25,0.12502]
[1727878557440,33.9,145.33,145.25,3.56782]
[1727878557946,33.9,145.33,145.25,0.12502]
[1727878558152,33.9,145.33,145.26,3.4425]
[1727878558536,3.4412,145.32,145.29,3.4417]
[1727878558738,3.4412,145.32,145.25,0.12502]
[1727878558739,7.48,145.33,145.25,0.12502]
[1727878561040,3.4416,145.31,145.28,3.4419]
[1727878561547,7.48,145.33,145.25,0.12502]
[1727878561753,3.4413,145.32,145.25,0.12502]
[1727878562240,3.4413,145.32,145.29,3.4416]
[1727878563050,3.441,145.33,145.3,3.4416]
[1727878563238,2.6557,145.34,145.25,26.54502]
[1727878563540,8.9041,145.36,145.27,26.42]
[1727878563846,8.9041,145.36,145.25,26.54502]
[1727878564038,35.3241,145.36,145.25,26.54502]
[1727878564237,35.3241,145.36,145.28,3.442]
[1727878564441,35.3241,145.36,145.25,26.54502]
[1727878564643,3.442,145.29,145.26,3.4424]
[1727878564945,7.5,145.32,145.25,0.12502]
[1727878565740,3.4418,145.3,145.27,3.4422]
[1727878566048,26.42,145.31,145.25,0.12502]
[1727878566234,26.42,145.28,145.25,0.12502]
[1727878566433,26.42,145.28,145.17,1.3062]
[1727878566434,7.5,145.27,145.21,3.4437]
[1727878566840,3.4431,145.24,145.17,4.7507]
[1727878567038,26.42,145.26,145.13,26.54502]
[1727878567240,26.42,145.23,145.13,0.12502]
[1727878567439,3.4448,145.17,145.13,3.57052]
[1727878567639,26.42,145.21,145.13,0.12502]
[1727878567843,1.3008,145.2,145.13,0.12502]
[1727878568241,7.5,145.22,145.13,26.54502]
[1727878568442,12.2439,145.24,145.2,3.4439]
[1727878568643,12.2439,145.24,145.15,26.42]
[1727878568948,12.2439,145.24,145.16,1.3131]
[1727878569142,0.12502,145.25,145.18,26.42]
[1727878569549,0.12502,145.25,145.24,3.443]
[1727878570249,0.12502,145.25,145.19,1.3158]
[1727878571240,0.12502,145.25,145.24,3.443]
[1727878571549,0.12502,145.25,145.12,43.0]
[1727878571550,43.12502,145.25,145.12,43.0]
[1727878571744,7.5,145.24,145.17,3.4445]
[1727878571941,3.4434,145.23,145.15,43.0]
[1727878572146,7.5,145.24,145.15,43.0]
[1727878572339,7.5,145.24,145.16,3.4449]
[1727878572541,2.6669,145.23,145.14,1.3841]
[1727878572945,2.6669,145.23,145.19,3.4441]
[1727878573346,3.4437,145.22,145.19,3.4441]
[1727878573658,2.6669,145.23,145.14,1.3841]
[1727878573845,3.4438,145.22,145.14,1.3841]
[1727878574045,2.6669,145.23,145.14,1.3841]
[1727878574553,3.4442,145.2,145.16,3.4448]
[1727878574859,43.0,145.22,145.13,2.83302]
[1727878575151,43.0,145.22,145.16,3.4448]
[1727878575349,2.6669,145.23,145.13,2.83302]
[1727878575656,0.12502,145.25,145.22,3.4433]
[1727878575948,0.12502,145.25,145.16,7.5]
[1727878576153,43.12502,145.25,145.17,3.4445]
[1727878576350,43.12502,145.25,145.16,7.5]
[1727878576749,43.0,145.23,145.17,3.4447]
[1727878577052,7.5,145.22,145.13,10.33302]
[1727878577248,7.5,145.22,145.15,3.4451]
[1727878577449,11.462,145.22,145.13,2.83302]
[1727878578153,7.5,145.22,145.13,2.83302]
[1727878578356,7.5,145.22,145.19,3.4441]
[1727878578551,50.62502,145.25,145.15,50.5]
[1727878578756,0.12502,145.25,145.17,43.0]
[1727878578946,0.12502,145.25,145.24,3.443]
[1727878580150,7.62502,145.31,145.2,14.96055218]
[1727878580451,0.12502,145.31,145.22,43.0]
[1727878580754,0.12502,145.31,145.24,43.0]
[1727878580952,0.12502,145.31,145.22,43.0]
[1727878581154,3.4418,145.3,145.2,57.96055218]
[1727878581452,3.4418,145.3,145.2,54.435]
[1727878581652,3.4418,145.3,145.26,3.4424]
[1727878582155,0.12502,145.31,145.24,7.48]
[1727878582353,0.12502,145.31,145.25,50.48]
[1727878582562,0.12502,145.31,145.26,7.48]
[1727878582852,0.12502,145.31,145.3,3.4416]
[1727878584049,0.12502,145.37,145.28,4.72370004]
[1727878584249,0.12502,145.37,145.3,7.48]
[1727878584446,0.12502,145.37,145.3,50.48]
[1727878584754,0.12502,145.37,145.3,7.48]
[1727878585151,0.12502,145.37,145.34,3.4406]
[1727878585152,3.56502,145.37,145.34,3.4406]
[1727878585355,0.12502,145.37,145.3,7.48]
[1727878586249,0.12502,145.37,145.28,1.2714]
[1727878586250,43.12502,145.37,145.28,1.2714]
[1727878586448,43.0,145.35,145.28,1.2714]
[1727878586956,7.60502,145.37,145.28,1.2714]
[1727878587455,7.60502,145.37,145.31,3.4412]
[1727878587657,7.60502,145.37,145.28,1.2714]
[1727878587851,3.4406,145.35,145.28,1.2714]
[1727878588053,7.60502,145.37,145.28,1.2714]
[1727878588253,3.4403,145.36,145.32,3.441]
[1727878588556,7.60502,145.37,145.3,7.48]
[1727878588557,0.12502,145.37,145.3,7.48]
[1727878588753,0.12502,145.37,145.36,3.4402]
[1727878588948,0.12502,145.37,145.3,7.48]
[1727878589147,0.12502,145.37,145.3,50.48]
[1727878589345,0.12502,145.37,145.35,3.4404]
[1727878589750,0.12502,145.37,145.31,1.2826]
[1727878589953,0.12502,145.37,145.36,3.4402]
[1727878590257,0.12502,145.37,145.31,1.2826]
[1727878591055,0.12502,145.37,145.36,3.4402]
[1727878592155,0.12502,145.43,145.35,43.0]
[1727878592350,0.12502,145.43,145.36,1.3235]
[1727878592556,43.0,145.42,145.31,1.40762]
[1727878592749,43.0,145.42,145.39,3.4394]
[1727878592950,43.0,145.42,145.32,7.48]
[1727878593664,26.43,145.42,145.32,7.48]
[1727878593964,3.4392,145.41,145.38,3.4396]
[1727878594177,3.4392,145.41,145.32,7.48]
[1727878594178,0.12502,145.43,145.32,33.91]
[1727878594359,0.12502,145.43,145.41,3.439]
[1727878595252,0.12502,145.43,145.42,3.4388]
[1727878596059,0.12502,145.43,145.41,3.4388]
[1727878596362,0.12502,145.43,145.38,1.3635]
[1727878596562,0.12502,145.43,145.42,3.4388]
[1727878598354,0.12502,145.43,145.4,7.48]
[1727878598764,0.12502,145.43,145.38,8.8435]
[1727878598956,0.12502,145.43,145.39,3.4395]
[1727878599359,3.4389,145.42,145.39,3.4395]
[1727878599557,0.12502,145.43,145.38,10.9195]
[1727878599762,0.12502,145.43,145.38,7.48]
[1727878600666,0.12502,145.43,145.42,3.4388]
[1727878600962,0.12502,145.43,145.38,7.48]
[1727878601265,0.12502,145.43,145.39,3.4394]
[1727878601456,0.12502,145.43,145.38,7.48]
[1727878601862,0.12502,145.43,145.42,3.4388]
[1727878602062,3.56232,145.49,145.42,33.91]
[1727878602257,0.12502,145.49,145.44,26.43]
[1727878602569,0.12502,145.49,145.48,3.4374]
[1727878603365,29.1186,145.56,145.49,3.4369]
[1727878603567,29.1186,145.56,145.46,7.48]
[1727878604068,3.436,145.54,145.46,7.48]
[1727878604771,3.4362,145.53,145.46,7.48]
[1727878604974,29.1186,145.56,145.46,7.48]
[1727878605178,26.43,145.54,145.46,7.48]
[1727878605470,2.6886,145.56,145.46,7.48]
[1727878605471,26.55502,145.55,145.46,7.48]
[1727878605659,26.55502,145.55,145.46,3.4376]
[1727878605971,26.43,145.53,145.44,7.48]
[1727878606373,3.437,145.5,145.47,3.4376]
[1727878606968,26.43,145.53,145.44,7.48]
[1727878608977,26.43,145.53,145.43,0.12502]
[1727878609165,26.43,145.48,145.43,0.12502]
[1727878609871,3.4377,145.47,145.43,0.12502]
[1727878610066,26.43,145.48,145.43,0.12502]
[1727878610683,7.34269997,145.49,145.43,0.12502]
[1727878610870,26.43,145.48,145.43,0.12502]
[1727878611578,3.9428,145.49,145.43,0.12502]
[1727878612074,3.4376,145.48,145.45,3.4379]
[1727878612271,3.9428,145.49,145.43,0.12502]
[1727878612470,7.38,145.49,145.46,3.4378]
[1727878612770,1.2749,145.49,145.43,0.12502]
[1727878613262,3.4371,145.49,145.46,3.4377]
[1727878613468,2.7567,145.54,145.44,33.89]
[1727878613668,2.7567,145.54,145.44,36.4784]
[1727878613873,3.4371,145.5,145.47,3.4374]
[1727878614175,2.7567,145.54,145.44,36.4784]
[1727878614564,3.437,145.5,145.47,3.4376]
[1727878615166,3.4368,145.51,145.47,3.4376]
[1727878615370,2.7567,145.54,145.47,3.4376]
[1727878616263,3.4369,145.5,145.47,3.4376]
[1727878616468,2.7567,145.54,145.44,13.4866]
[1727878616674,2.7567,145.54,145.44,10.0484]
[1727878616874,3.4369,145.5,145.44,10.0484]
[1727878617078,2.7567,145.54,145.44,36.4784]
[1727878617381,6.1928,145.54,145.47,26.43]
[1727878617578,3.4361,145.54,145.47,26.43]
[1727878617774,3.4361,145.54,145.51,3.4366]
[1727878617974,0.12502,145.55,145.49,26.43]
[1727878619680,3.56092,145.55,145.52,3.4364]
[1727878620375,0.12502,145.55,145.52,3.4364]
[1727878620571,0.12502,145.55,145.51,3.4366]
[1727878620771,0.12502,145.55,145.49,26.43]
[1727878620772,0.12502,145.55,145.48,7.46]
[1727878620977,0.12502,145.55,145.45,33.89]
[1727878621371,3.4364,145.52,145.45,33.89]
[1727878621583,0.12502,145.55,145.48,3.4374]
[1727878621878,3.4373,145.49,145.45,26.43]
[1727878622083,3.4373,145.49,145.44,2.5884]
[1727878622385,3.40286981,145.51,145.43,0.12502]
[1727878622584,27.7929,145.5,145.43,0.12502]
[1727878622880,30.3555,145.5,145.43,0.12502]
[1727878623184,26.43,145.48,145.37,0.12502]
[1727878623379,7.46,145.47,145.37,0.12502]
[1727878624079,3.4385,145.44,145.4,3.4392]
[1727878624785,7.46,145.47,145.37,26.55502]
[1727878624986,7.58502,145.49,145.4,26.43]
[1727878625187,0.12502,145.49,145.4,33.89]
[1727878625382,0.12502,145.49,145.42,26.43]
[1727878625585,0.12502,145.49,145.43,3.5106674]
[1727878625791,0.12502,145.49,145.48,3.4374]
[1727878626086,0.12502,145.49,145.43,3.5106674]
[1727878626280,0.12502,145.49,145.47,3.4374]
[1727878626481,0.12502,145.49,145.45,26.43]
[1727878627077,0.12502,145.49,145.41,3.9693]
[1727878627980,0.12502,145.49,145.41,30.3993]
[1727878628780,0.12502,145.49,145.41,3.9693]
[1727878629093,3.438,145.46,145.42,3.4387]
[1727878629297,3.438,145.46,145.41,3.9693]
[1727878629484,3.4376,145.47,145.44,3.4382]
[1727878629681,0.12502,145.49,145.41,3.9693]
[1727878630088,0.12502,145.49,145.48,3.4374]
[1727878630485,7.46,145.58,145.48,26.43]
[1727878630687,3.4359,145.54,145.51,3.4365]
[1727878630987,8.8105,145.58,145.48,33.89]
[1727878631503,8.8105,145.58,145.51,26.43]
[1727878631504,1.3505,145.58,145.51,26.43]
[1727878631796,1.3505,145.63,145.53,26.43]
[1727878631989,1.3505,145.63,145.56,26.43]
[1727878632182,1.3505,145.63,145.57,3.4351]
[1727878632389,1.3505,145.63,145.56,33.89]
[1727878632689,4.7845,145.63,145.59,3.4347]
[1727878632995,10.0648,145.66,145.56,33.89]
[1727878633203,2.6048,145.66,145.56,33.89]
[1727878633404,2.6048,145.66,145.49,2.80652]
[1727878633607,2.6048,145.66,145.55,42.87]
[1727878633805,3.4336,145.64,145.55,46.37551195]
[1727878634003,2.6048,145.66,145.57,42.87]
[1727878634405,2.6048,145.66,145.57,50.33]
[1727878634808,3.4333,145.66,145.6,46.3045]
[1727878635008,0.12502,145.67,145.6,46.3045]
[1727878635700,0.12502,145.67,145.6,85.74]
[1727878635912,0.12502,145.67,145.61,7.46]
[1727878636411,42.87,145.77,145.65,42.87]
[1727878636604,3.55662,145.73,145.65,50.33]
[1727878636803,3.55662,145.73,145.67,42.87]
[1727878637001,0.12502,145.73,145.67,42.87]
[1727878637915,0.12502,145.73,145.72,42.87]
[1727878638106,0.12502,145.79,145.73,33.0]
[1727878638306,0.12502,145.79,145.75,42.87]
[1727878638611,0.12502,145.79,145.77,3.4305]
[1727878638816,0.12502,145.79,145.76,7.46]
[1727878639215,0.12502,145.79,145.75,50.33]
[1727878639726,0.12502,145.79,145.78,3.4303]
[1727878640412,0.12502,145.85,145.77,42.87]
[1727878640616,0.12502,145.85,145.84,42.87]
[1727878640920,0.12502,145.85,145.84,46.2989]
[1727878641116,0.12502,145.85,145.84,42.87]
[1727878641712,3.5072141,145.94,145.83,7.46]
[1727878642022,50.31,145.95,145.84,42.87]
[1727878642212,53.74801518,145.95,145.82,42.87]
[1727878642410,42.87,145.92,145.79,42.99502]
[1727878642606,50.31,145.9,145.79,0.12502]
[1727878642816,42.87,145.88,145.79,0.12502]
[1727878643016,50.31,145.9,145.79,0.12502]
[1727878643412,3.4294,145.82,145.79,0.12502]
[1727878643612,42.87,145.87,145.79,0.12502]
[1727878644015,7.44,145.86,145.79,0.12502]
[1727878644316,10.23,145.86,145.79,0.12502]
[1727878644517,42.87,145.85,145.79,0.12502]
[1727878644719,3.4298,145.8,145.79,0.12502]
[1727878644914,42.87,145.85,145.79,0.12502]
[1727878645115,11.5997,145.86,145.79,0.12502]
[1727878645719,3.4289,145.85,145.8,3.4298]
[1727878645916,11.5997,145.86,145.79,0.12502]
[1727878646424,11.5997,145.86,145.79,3.55502]
[1727878646923,3.4291,145.84,145.79,3.55502]
[1727878647223,11.5997,145.86,145.8,3.4298]
[1727878647416,42.87,145.92,145.8,42.87]
[1727878647620,4.0896,145.94,145.88,3.4279]
[1727878647822,11.5296,145.94,145.84,42.87]
[1727878648022,3.4277,145.9,145.84,42.87]
[1727878648317,4.0896,145.94,145.84,42.87]
[1727878648523,4.0896,145.94,145.87,42.87]
[1727878649125,4.0896,145.94,145.84,42.87]
[1727878649423,3.4277,145.9,145.84,42.87]
[1727878649622,4.0896,145.94,145.84,42.87]
[1727878650029,4.0896,145.94,145.87,42.87]
[1727878650327,4.0896,145.94,145.88,3.4278]
[1727878650916,4.0896,145.94,145.87,50.31]
[1727878651118,4.0896,145.94,145.87,53.7381]
[1727878651519,3.55242,145.91,145.87,53.7381]
[1727878652136,0.12502,145.91,145.82,45.5692]
[1727878652429,0.12502,145.91,145.83,7.44]
[1727878652620,3.4282,145.87,145.83,10.8689]
[1727878652929,0.12502,145.91,145.81,7.44]
[1727878653126,3.4288,145.85,145.81,7.44]
[1727878653328,42.87,145.9,145.8,42.87]
[1727878653523,42.87,145.9,145.77,50.31]
[1727878654021,42.87,145.9,145.79,42.99502]
[1727878654218,3.4284,145.86,145.82,3.4293]
[1727878654423,42.87,145.9,145.79,42.99502]
[1727878654728,3.4286,145.86,145.82,3.4292]
[1727878654930,42.87,145.9,145.82,3.4292]
[1727878655120,42.87,145.9,145.79,42.99502]
[1727878655121,0.12502,145.91,145.79,42.99502]
[1727878655326,0.12502,145.91,145.82,42.87]
[1727878655725,0.12502,145.91,145.81,7.44]
[1727878655927,3.4278,145.89,145.82,42.87]
[1727878656225,0.12502,145.91,145.82,42.87]
[1727878656622,3.4279,145.89,145.85,3.4286]
[1727878657334,3.428,145.88,145.84,3.4287]
[1727878657632,0.12502,145.91,145.81,7.44]
[1727878657825,3.4279,145.88,145.81,7.44]
[1727878658031,0.12502,145.91,145.82,3.4293]
[1727878658329,3.4281,145.88,145.82,42.87]
[1727878658734,3.4281,145.88,145.85,3.4286]
[1727878659036,3.4281,145.88,145.82,42.87]
[1727878659232,3.4279,145.89,145.82,42.87]
[1727878659440,0.12502,145.91,145.85,42.87]
[1727878659735,3.4275,145.9,145.85,42.87]
[1727878659939,0.12502,145.91,145.87,42.87]
[1727878660126,0.12502,145.91,145.85,7.44]
[1727878660433,3.4281,145.88,145.85,7.44]